fUSD/lending_fUSD_20240223
["ID","MTS","AMOUNT","RATE_DAILY","PERIOD"]
[314995550,1708720238012,-151.0,0.00030889,30]
[314995551,1708720238021,-162.51,0.0003089,2]
[314995552,1708720238031,-525.67,0.0003093,2]
[314995553,1708720238041,-741.02,0.0003093,2]
[314995555,1708720238050,-679.05,0.0003093,2]
[314995557,1708720238059,-500.0,0.0003093,2]
[314995558,1708720238069,-578.32,0.0003093,2]
[314995559,1708720238079,-500.0,0.0003093,2]
[314995560,1708720238089,-500.0,0.00030995,2]
[314995561,1708720238098,-500.0,0.00030995,2]
[314995562,1708720238108,-914.7,0.00030995,2]
[314995563,1708720238117,-255.31,0.00030995,2]
[314995564,1708720238126,-221.89,0.00030997,2]
[314995565,1708720238135,-9900.0,0.00031,2]
[314995566,1708720238145,-227.24699478,0.00031057,2]
[314995567,1708720238154,-525.67,0.00031067,2]
[314995568,1708720238163,-741.02,0.00031067,2]
[314995569,1708720238172,-679.05,0.00031067,2]
[314995570,1708720238182,-274.01,0.00031067,2]
[314995571,1708720238191,-578.32,0.00031067,2]
[314995572,1708720238201,-500.0,0.00031067,2]
[314995573,1708720238210,-500.0,0.00031132,2]
[314995574,1708720238219,-241.88,0.00031132,2]
[314995575,1708720238228,-914.7,0.00031132,2]
[314995576,1708720238237,-221.89,0.00031146,2]
[314995577,1708720238246,-2000.0,0.000312,2]
[314995578,1708720238255,-525.67,0.00031204,2]
[314995579,1708720238265,-741.02,0.00031204,2]
[314995580,1708720238275,-679.05,0.00031204,2]
[314995581,1708720238285,-578.32,0.00031204,2]
[314995582,1708720238294,-500.0,0.00031204,2]
[314995583,1708720238308,-500.0,0.00031269,2]
[314995584,1708720238317,-914.7,0.00031269,2]
[314995585,1708720238326,-150.18,0.00031274,2]
[314995586,1708720238335,-203.0,0.0003129,6]
[314995587,1708720238346,-525.67,0.00031341,2]
[314995588,1708720238355,-741.02,0.00031341,2]
[314995589,1708720238365,-679.05,0.00031341,2]
[314995590,1708720238376,-578.32,0.00031341,2]
[314995591,1708720238385,-500.0,0.00031341,2]
[314995592,1708720238395,-232.76,0.00031406,2]
[314995593,1708720238404,-914.7,0.00031406,2]
[314995594,1708720238414,-1256.0,0.0003141,2]
[314995595,1708720238423,-168.788,0.0003141,2]
[314995596,1708720238432,-1231.0,0.0003141,2]
[314995597,1708720238442,-521.148,0.0003141,2]
[314995598,1708720238451,-276.0,0.0003141,2]
[314995599,1708720238460,-859.0,0.0003141,2]
[314995600,1708720238470,-430.0,0.0003141,2]
[314995601,1708720238480,-1138.0,0.0003141,2]
[314995602,1708720238489,-343.0,0.0003141,2]
[314995603,1708720238499,-321.0,0.0003141,2]
[314995604,1708720238508,-2891.0,0.0003141,2]
[314995605,1708720238518,-150.0,0.0003141,2]
[314995606,1708720238528,-454.0,0.0003141,2]
[314995607,1708720238538,-5635.316,0.0003141,2]
[314995608,1708720238548,-2695.0,0.0003141,2]
[314995609,1708720238557,-4107.0,0.0003141,2]
[314995610,1708720238566,-2295.0,0.0003141,2]
[314995611,1708720238576,-19879.0,0.0003141,2]
[314995612,1708720238625,-7429.0,0.0003141,2]
[314995613,1708720238634,-8177.0,0.0003141,2]
[314995614,1708720238643,-2932.0,0.0003141,2]
[314995615,1708720238652,-33527.319,0.0003141,2]
[314995616,1708720238661,-458.0,0.0003141,2]
[314995617,1708720238670,-955.0,0.0003141,2]
[314995618,1708720238680,-525.67,0.00031478,2]
[314995619,1708720238690,-741.02,0.00031478,2]
[314995620,1708720238699,-679.05,0.00031478,2]
[314995621,1708720238709,-578.32,0.00031478,2]
[314995622,1708720238719,-500.0,0.00031478,2]
[314995623,1708720238728,-150.0,0.000315,2]
[314995624,1708720238738,-3572.6,0.00031512,2]
[314995625,1708720238747,-3572.6,0.00031512,2]
[314995626,1708720238758,-3572.6,0.00031512,2]
[314995627,1708720238768,-3572.6,0.00031512,2]
[314995628,1708720238777,-3572.6,0.00031512,2]
[314995629,1708720238786,-3572.6,0.00031512,2]
[314995630,1708720238796,-3572.6,0.00031512,2]
[314995631,1708720238806,-3572.6,0.00031512,2]
[314995632,1708720238815,-3572.6,0.00031512,2]
[314995633,1708720238824,-3572.6,0.00031512,2]
[314995634,1708720238833,-3572.6,0.00031512,2]
[314995635,1708720238844,-3572.6,0.00031512,2]
[314995636,1708720238855,-3572.6,0.00031512,2]
[314995637,1708720238864,-3572.6,0.00031512,2]
[314995638,1708720238873,-3572.6,0.00031512,2]
[314995639,1708720238883,-3572.64,0.00031512,2]
[314995640,1708720238893,-151.0,0.00031519,7]
[314995641,1708720238902,-914.7,0.00031543,2]
[314995642,1708720238911,-150.0,0.00031585,7]
[314995643,1708720238921,-652.216,0.00031585,7]
[314995644,1708720238930,-533.7797639,0.00031599,2]
[314995645,1708720238940,-11310.48328605,0.00031613,2]
[314995646,1708720238950,-525.81,0.00031615,2]
[314995647,1708720238959,-741.11,0.00031615,2]
[314995648,1708720238968,-679.05,0.00031615,2]
[314995649,1708720238978,-578.32,0.00031615,2]
[314995650,1708720238987,-500.0,0.00031615,2]
[314995651,1708720238997,-224.16,0.00031644,2]
[314995652,1708720239006,-3000.0,0.00031644,2]
[314995653,1708720239015,-765.99,0.00031647,2]
[314995654,1708720239025,-914.7,0.0003168,2]
[314995655,1708720239036,-5000.0,0.00031699,2]
[314995656,1708720239045,-679.06,0.00031752,2]
[314995657,1708720239055,-578.32,0.00031752,2]
[314995658,1708720239064,-327.01,0.00031752,2]
[314995659,1708720239074,-700.0,0.0003177,2]
[314995660,1708720239083,-400.0,0.0003177,2]
[314995661,1708720239092,-790.18610453,0.000318,7]
[314995662,1708720239102,-200.0,0.000318,2]
[314995663,1708720239111,-531.33139332,0.000318,2]
[314995664,1708720239120,-200.0,0.000318,4]
[314995665,1708720239129,-311.0,0.000318,20]
[314995666,1708720239139,-200.0,0.000318,2]
[314995667,1708720239149,-239704.724629,0.000318,3]
[314995668,1708720239158,-317.88,0.000318,2]
[314995669,1708720239195,-4000.0,0.000318,2]
[314995670,1708720239205,-690.69093006,0.00031811,2]
[314995671,1708720239214,-914.7,0.00031817,2]
[314995672,1708720239224,-632.0,0.00031869,2]
[314995673,1708720239233,-578.32,0.00031889,2]
[314995674,1708720239242,-150.18,0.00031893,2]
[314995675,1708720239251,-530.25658732,0.00031898,2]
[314995676,1708720239260,-505.5243216,0.00031898,2]
[314995677,1708720239269,-159.71,0.00031898,2]
[314995678,1708720239279,-500.0,0.00031898,2]
[314995679,1708720239289,-500.0,0.00031898,2]
[314995680,1708720239303,-500.0,0.00031898,2]
[314995681,1708720239313,-500.0,0.00031898,2]
[314995682,1708720239322,-500.0,0.00031898,2]
[314995683,1708720239331,-500.0,0.00031898,2]
[314995684,1708720239342,-1286.87,0.00031944,2]
[314995685,1708720239351,-914.7,0.00031954,2]
[314995686,1708720239361,-2200.0,0.00032,3]
[314995688,1708720239370,-578.55,0.00032026,2]
[314995689,1708720239381,-500.0,0.00032035,2]
[314995690,1708720239391,-500.0,0.00032035,2]
[314995691,1708720239401,-161.0,0.00032051,2]
[314995692,1708720239410,-914.7,0.00032091,2]
[314995693,1708720239420,-151.0,0.00032163,4]
[314995694,1708720239429,-500.0,0.00032172,2]
[314995695,1708720239439,-914.7,0.00032228,2]
[314995696,1708720239449,-200.0,0.000323,5]
[314995697,1708720239459,-311.0,0.000323,21]
[314995698,1708720239469,-3577.0,0.00032305,2]
[314995699,1708720239479,-500.0,0.00032309,2]
[314995700,1708720239488,-914.7,0.00032365,2]
[314995701,1708720239498,-293.0,0.00032392,2]
[314995702,1708720239508,-181.731711,0.0003243,2]
[314995703,1708720239517,-161.021086,0.0003243,2]
[314995704,1708720239526,-155.007168,0.0003243,2]
[314995705,1708720239536,-205.163103,0.0003243,2]
[314995706,1708720239545,-155.007164,0.0003243,2]
[314995707,1708720239555,-223.814296,0.0003243,2]
[314995708,1708720239564,-152.546293,0.0003243,2]
[314995709,1708720239574,-186.511912,0.0003243,2]
[314995710,1708720239583,-223.814295,0.0003243,2]
[314995711,1708720239592,-161.021085,0.0003243,2]
[314995712,1708720239601,-155.007164,0.0003243,2]
[314995713,1708720239611,-186.511912,0.0003243,2]
[314995714,1708720239621,-500.0,0.00032446,2]
[314995715,1708720239630,-204.0,0.000325,30]
[314995716,1708720239640,-914.7,0.00032502,2]
[314995717,1708720239650,-150.18,0.00032512,2]
[314995718,1708720239659,-500.0,0.00032583,2]
[314995719,1708720239668,-914.7,0.00032639,2]
[314995720,1708720239677,-153.68,0.000327,2]
[314995721,1708720239686,-153.68,0.000327,2]
[314995722,1708720239696,-500.0,0.0003272,2]
[314995723,1708720239705,-914.7,0.00032776,2]
[314995724,1708720239714,-158.55,0.00032783,2]
[314995725,1708720239723,-200.0,0.000328,2]
[314995726,1708720239732,-200.0,0.000328,6]
[314995727,1708720239741,-616.0,0.000328,21]
[314995728,1708720239750,-151.0,0.00032819,2]
[314995729,1708720239759,-500.0,0.00032857,2]
[314995730,1708720239768,-690.69093006,0.00032874,2]
[314995731,1708720239778,-10000.0,0.00032876,2]
[314995732,1708720239786,-150.1,0.00032877,2]
[314995733,1708720239796,-153.76,0.00032877,2]
[314995734,1708720239806,-216.4,0.00032877,2]
[314995735,1708720239816,-319.14,0.00032877,2]
[314995736,1708720239826,-150.0,0.00032877,2]
[314995737,1708720239837,-250.0,0.00032877,2]
[314995738,1708720239847,-11310.48328605,0.00032878,2]
[314995739,1708720239857,-3448.19753589,0.00032892,2]
[314995740,1708720239866,-160.46331719,0.00032894,4]
[314995741,1708720239877,-8000.0,0.000329,2]
[314995742,1708720239887,-914.77,0.00032913,4]
[314995743,1708720239896,-500.0,0.00032994,4]
[314995744,1708720239905,-10000.0,0.00033,2]
[314995745,1708720239915,-950.0,0.00033,3]
[314995746,1708720239927,-165.0,0.00033,2]
[314995747,1708720239937,-500.0,0.00033131,4]
[314995748,1708720239947,-150.18,0.00033132,2]
[314995749,1708720239957,-317.88,0.0003318,2]
[314995750,1708720239967,-500.0,0.00033268,4]
[314995751,1708720239977,-460.53930124,0.00033273,2]
[314995752,1708720239986,-200.0,0.000333,6]
[314995753,1708720239997,-177.595393,0.00033373,2]
[314995754,1708720240007,-500.0,0.00033405,4]
[314995755,1708720240018,-160.0,0.00033421,2]
[314995756,1708720240029,-345.88326893,0.00033467,30]
[314995757,1708720240039,-1845.7,0.000335,2]
[314995758,1708720240049,-1845.7,0.000335,2]
[314995759,1708720240058,-1845.7,0.000335,2]
[314995760,1708720240067,-1845.7,0.000335,2]
[314995761,1708720240076,-1845.7,0.000335,2]
[314995762,1708720240085,-1845.7,0.000335,2]
[314995763,1708720240094,-1845.7,0.000335,2]
[314995764,1708720240103,-1845.7,0.000335,2]
[314995765,1708720240112,-1845.7,0.000335,2]
[314995766,1708720240121,-1845.7,0.000335,2]
[314995767,1708720240130,-1845.7,0.000335,2]
[314995768,1708720240139,-1845.7,0.000335,2]
[314995769,1708720240148,-1845.7,0.000335,2]
[314995770,1708720240157,-1845.7,0.000335,2]
[314995771,1708720240166,-1845.7,0.000335,2]
[314995772,1708720240175,-1845.7,0.000335,2]
[314995773,1708720240184,-1845.7,0.000335,2]
[314995774,1708720240192,-1845.7,0.000335,2]
[314995775,1708720240201,-1845.7,0.000335,2]
[314995776,1708720240210,-1845.7,0.000335,2]
[314995777,1708720240219,-500.0,0.00033542,4]
[314995778,1708720240229,-1286.87,0.00033587,2]
[314995779,1708720240238,-500.0,0.00033679,4]
[314995780,1708720240249,-203.0,0.00033682,10]
[314995781,1708720240259,-162.51,0.00033698,2]
[314995782,1708720240268,-150.0,0.00033742,2]
[314995783,1708720240279,-150.18,0.00033751,2]
[314995784,1708720240288,-200.0,0.000338,2]
[314995785,1708720240298,-200.0,0.000338,7]
[314995786,1708720240310,-500.0,0.00033816,4]
[314995787,1708720240319,-182.0,0.000339,7]
[314995788,1708720240328,-152.65575181,0.000339,2]
[314995789,1708720240337,-765.99,0.00033911,2]
[314995790,1708720240346,-690.69093006,0.00033937,2]
[314995791,1708720240355,-829.3,0.0003394,2]
[314995792,1708720240364,-500.0,0.00033953,4]
[314995793,1708720240375,-2000.0,0.00034,2]
[314995794,1708720240385,-200.0,0.00034,30]
[314995795,1708720240394,-311.2843615,0.00034,7]
[314995796,1708720240403,-246.67090471,0.00034008,7]
[314995797,1708720240413,-160.49481861,0.00034016,7]
[314995798,1708720240422,-151.54644394,0.00034025,7]
[314995799,1708720240431,-311.2843615,0.00034039,7]
[314995800,1708720240440,-156.30526137,0.00034047,7]
[314995801,1708720240449,-311.2843615,0.00034048,7]
[314995802,1708720240459,-495.33510339,0.00034049,7]
[314995803,1708720240468,-181.731711,0.00034052,2]
[314995804,1708720240477,-161.021086,0.00034052,2]
[314995805,1708720240486,-205.163103,0.00034052,2]
[314995806,1708720240495,-161.021085,0.00034052,2]
[314995807,1708720240504,-368.0,0.00034068,2]
[314995808,1708720240513,-156.30526137,0.00034076,7]
[314995809,1708720240522,-196.79787405,0.00034086,3]
[314995810,1708720240533,-155.57626885,0.00034089,7]
[314995811,1708720240542,-450.0,0.0003409,2]
[314995812,1708720240551,-500.0,0.0003409,2]
[314995813,1708720240560,-500.0,0.0003409,2]
[314995814,1708720240569,-500.0,0.0003409,2]
[314995815,1708720240578,-500.0,0.0003409,2]
[314995816,1708720240587,-500.0,0.0003409,2]
[314995817,1708720240596,-500.0,0.0003409,2]
[314995818,1708720240606,-500.0,0.0003409,2]
[314995819,1708720240615,-500.0,0.0003409,2]
[314995820,1708720240623,-500.0,0.0003409,2]
[314995821,1708720240633,-500.0,0.0003409,2]
[314995822,1708720240642,-500.0,0.0003409,2]
[314995823,1708720240651,-500.0,0.0003409,2]
[314995824,1708720240660,-500.0,0.0003409,2]
[314995825,1708720240670,-500.0,0.0003409,2]
[314995826,1708720240682,-500.0,0.0003409,2]
[314995827,1708720240692,-500.0,0.0003409,2]
[314995828,1708720240701,-500.0,0.0003409,2]
[314995829,1708720240711,-500.0,0.0003409,2]
[314995830,1708720240720,-500.0,0.0003409,2]
[314995831,1708720240729,-500.0,0.0003409,2]
[314995832,1708720240738,-500.0,0.0003409,2]
[314995833,1708720240747,-500.0,0.0003409,2]
[314995834,1708720240756,-500.0,0.0003409,2]
[314995835,1708720240765,-500.0,0.0003409,2]
[314995836,1708720240774,-500.0,0.0003409,2]
[314995837,1708720240784,-500.0,0.0003409,2]
[314995838,1708720240793,-500.0,0.0003409,2]
[314995839,1708720240802,-332.86666873,0.0003409,4]
[314995840,1708720240812,-153.50007691,0.00034106,7]
[314995841,1708720240822,-151.49591866,0.00034106,7]
[314995842,1708720240831,-167.87801701,0.00034118,7]
[314995843,1708720240840,-495.33510339,0.00034121,7]
[314995844,1708720240849,-154.98329938,0.00034125,7]
[314995845,1708720240857,-246.67090471,0.00034127,7]
[314995846,1708720240867,-151.54644394,0.00034127,7]
[314995847,1708720240875,-246.67090471,0.00034138,7]
[314995848,1708720240884,-11310.48328605,0.00034142,2]
[314995849,1708720240893,-495.33510339,0.00034147,7]
[314995850,1708720240902,-153.31768893,0.00034147,7]
[314995851,1708720240911,-3448.19753589,0.00034153,2]
[314995852,1708720240920,-167.02514081,0.00034166,7]
[314995853,1708720240929,-151.54644394,0.00034174,7]
[314995854,1708720240938,-246.67090471,0.00034182,7]
[314995855,1708720240947,-311.2843615,0.00034186,7]
[314995856,1708720240957,-246.67090471,0.00034191,7]
[314995857,1708720240966,-8000.0,0.000342,2]
[314995858,1708720240975,-246.67090471,0.00034202,7]
[314995859,1708720240983,-154.02083881,0.00034211,7]
[314995860,1708720240992,-311.2843615,0.00034223,7]
[314995861,1708720241001,-246.67090471,0.00034223,7]
[314995862,1708720241010,-495.33510339,0.00034224,7]
[314995863,1708720241018,-154.98329938,0.00034224,7]
[314995864,1708720241027,-495.33510339,0.00034226,7]
[314995865,1708720241038,-311.2843615,0.00034228,7]
[314995866,1708720241047,-153.50007691,0.00034246,7]
[314995867,1708720241056,-311.2843615,0.00034257,7]
[314995868,1708720241065,-495.33510339,0.00034261,7]
[314995869,1708720241073,-311.2843615,0.00034266,7]
[314995870,1708720241082,-160.49481861,0.00034266,7]
[314995871,1708720241091,-160.49481861,0.00034271,7]
[314995872,1708720241100,-246.67090471,0.00034291,7]
[314995873,1708720241110,-159.29487323,0.00034293,7]
[314995874,1708720241119,-156.57354395,0.00034299,7]
[314995875,1708720241128,-155.57626885,0.00034301,7]
[314995876,1708720241136,-495.33510339,0.00034316,7]
[314995877,1708720241145,-159.51672722,0.00034326,7]
[314995878,1708720241155,-156.30526137,0.00034336,7]
[314995879,1708720241164,-311.2843615,0.00034348,7]
[314995880,1708720241173,-159.51672722,0.0003436,7]
[314995881,1708720241182,-246.67090471,0.00034361,7]
[314995882,1708720241191,-159.51672722,0.00034364,7]
[314995883,1708720241200,-150.18,0.0003437,2]
[314995884,1708720241209,-156.30526137,0.00034397,7]
[314995885,1708720241218,-153.50007691,0.000344,7]
[314995886,1708720241227,-153.31768893,0.00034409,7]
[314995887,1708720241236,-1231.0,0.0003441,2]
[314995888,1708720241245,-849.0,0.0003441,2]
[314995889,1708720241253,-252.216,0.0003441,2]
[314995890,1708720241263,-447.413,0.0003441,2]
[314995891,1708720241272,-2327.639,0.0003441,2]
[314995892,1708720241281,-589.45,0.0003441,2]
[314995893,1708720241291,-458.0,0.0003441,2]
[314995894,1708720241303,-745.1,0.0003441,2]
[314995895,1708720241312,-495.33510339,0.00034418,7]
[314995896,1708720241321,-156.30526137,0.00034431,7]
[314995897,1708720241330,-495.33510339,0.00034431,7]
[314995898,1708720241341,-156.30526137,0.00034436,7]
[314995899,1708720241350,-495.33510339,0.00034463,7]
[314995900,1708720241358,-156.57354395,0.00034476,7]
[314995901,1708720241367,-246.67090471,0.00034479,7]
[314995902,1708720241377,-311.2843615,0.00034486,7]
[314995903,1708720241387,-153.68,0.000345,2]
[314995904,1708720241397,-153.68,0.000345,2]
[314995905,1708720241406,-153.68,0.000345,2]
[314995906,1708720241415,-153.68,0.000345,2]
[314995907,1708720241425,-168.4531371,0.00034508,7]
[314995908,1708720241434,-311.2843615,0.00034513,7]
[314995909,1708720241443,-153.31768893,0.00034513,7]
[314995910,1708720241453,-156.30526137,0.00034514,7]
[314995911,1708720241462,-1199.155428,0.0003452,2]
[314995912,1708720241471,-348.141898,0.0003452,2]
[314995913,1708720241480,-4560.832641,0.0003452,2]
[314995914,1708720241489,-69768.302369,0.0003452,2]
[314995915,1708720241498,-160.49481861,0.0003452,7]
[314995916,1708720241508,-10000.0,0.00034521,2]
[314995917,1708720241517,-165.0,0.00034521,2]
[314995918,1708720241526,-155.85963337,0.00034546,7]
[314995919,1708720241535,-317.88,0.0003456,2]
[314995920,1708720241544,-154.98329938,0.00034568,7]
[314995921,1708720241554,-154.02083881,0.00034577,7]
[314995922,1708720241563,-167.65885402,0.00034597,7]
[314995923,1708720241572,-156.30526137,0.000346,7]
[314995924,1708720241581,-166.16201499,0.00034604,7]
[314995925,1708720241590,-153.50007691,0.00034607,7]
[314995926,1708720241599,-150.0,0.00034607,2]
[314995927,1708720241608,-155.85963337,0.0003461,7]
[314995928,1708720241617,-246.67090471,0.00034625,7]
[314995929,1708720241627,-154.98329938,0.0003465,7]
[314995930,1708720241636,-153.50007691,0.00034674,7]
[314995931,1708720241645,-159.39088987,0.00034679,7]
[314995932,1708720241654,-156.30526137,0.00034688,7]
[314995933,1708720241664,-246.67090471,0.00034693,7]
[314995934,1708720241673,-311.2843615,0.00034712,7]
[314995935,1708720241683,-160.49481861,0.00034712,7]
[314995936,1708720241691,-158.44336474,0.00034718,7]
[314995937,1708720241701,-495.33510339,0.00034754,7]
[314995938,1708720241710,-153.33262733,0.00034755,7]
[314995939,1708720241719,-311.2843615,0.00034759,7]
[314995940,1708720241728,-155.57626885,0.0003478,7]
[314995941,1708720241737,-246.67090471,0.00034784,7]
[314995942,1708720241746,-153.31768893,0.00034785,7]
[314995943,1708720241755,-155.14487318,0.00034786,7]
[314995944,1708720241765,-160.0,0.0003479,2]
[314995945,1708720241774,-495.33510339,0.00034792,7]
[314995946,1708720241784,-156.57354395,0.00034792,7]
[314995947,1708720241792,-1798.733142,0.00034794,2]
[314995948,1708720241802,-522.212847,0.00034794,2]
[314995949,1708720241810,-6841.248962,0.00034794,2]
[314995950,1708720241819,-104652.453554,0.00034794,2]
[314995951,1708720241828,-200.0,0.000348,2]
[314995952,1708720241837,-445.0,0.000348,2]
[314995953,1708720241847,-167.02514081,0.00034808,7]
[314995954,1708720241857,-311.2843615,0.0003481,7]
[314995955,1708720241866,-246.67090471,0.00034817,7]
[314995956,1708720241876,-166.16201499,0.00034827,7]
[314995957,1708720241885,-156.57354395,0.00034831,7]
[314995958,1708720241894,-495.33510339,0.00034846,7]
[314995959,1708720241903,-156.35719251,0.00034864,7]
[314995960,1708720241913,-156.30526137,0.00034873,7]
[314995961,1708720241922,-495.33510339,0.00034874,7]
[314995962,1708720241931,-495.33510339,0.00034879,7]
[314995963,1708720241941,-160.49481861,0.0003489,7]
[314995964,1708720241949,-153.74027557,0.00034893,7]
[314995965,1708720241958,-156.30526137,0.00034899,7]
[314995966,1708720241967,-200.0,0.000349,8]
[314995967,1708720241976,-23541.08730707,0.000349,2]
[314995968,1708720241985,-4838.42865533,0.000349,2]
[314995969,1708720241994,-4838.4286553,0.000349,2]
[314995970,1708720242003,-4838.4286553,0.000349,2]
[314995971,1708720242012,-495.33510339,0.00034902,7]
[314995972,1708720242022,-163.70167317,0.0003491,7]
[314995973,1708720242033,-156.30526137,0.00034919,7]
[314995974,1708720242043,-2398.310856,0.00034931,2]
[314995975,1708720242052,-696.283796,0.00034931,2]
[314995976,1708720242061,-9121.665282,0.00034931,2]
[314995977,1708720242070,-139536.604738,0.00034931,2]
[314995978,1708720242079,-155.14487318,0.00034937,7]
[314995979,1708720242088,-16044.34690828,0.00034959,7]
[314995980,1708720242098,-166.16201499,0.00034961,7]
[314995981,1708720242107,-154.98329938,0.0003497,7]
[314995982,1708720242116,-158.00337685,0.00034986,7]
[314995983,1708720242125,-150.18,0.0003499,2]
[314995984,1708720242135,-332.81242251,0.0003499,2]
[314995985,1708720242145,-586.90975074,0.00035,4]
[314995986,1708720242154,-229.20433756,0.00035,7]
[314995987,1708720242163,-155.20925086,0.00035,4]
[314995988,1708720242172,-11612.86,0.00035,2]
[314995989,1708720242181,-1000.0,0.00035,3]
[314995990,1708720242191,-16993.57581157,0.00035,2]
[314995991,1708720242200,-500.0,0.00035,2]
[314995992,1708720242209,-150.0,0.00035,2]
[314995993,1708720242219,-1363.0,0.00035,7]
[314995994,1708720242229,-611.3548274,0.00035,2]
[314995995,1708720242239,-690.69093006,0.00035,2]
[314995996,1708720242248,-173.1772457,0.00035,2]
[314995997,1708720242257,-150.0,0.00035,5]
[314995998,1708720242267,-202.2846734,0.00035001,24]
[314995999,1708720242276,-311.2843615,0.00035004,7]
[314996000,1708720242287,-158.00337685,0.00035004,7]
[314996001,1708720242299,-311.2843615,0.00035006,7]
[314996002,1708720242310,-311.2843615,0.00035011,7]
[314996003,1708720242320,-246.67090471,0.00035018,7]
[314996004,1708720242329,-156.30526137,0.00035022,7]
[314996005,1708720242340,-500.0,0.00035046,10]
[314996006,1708720242349,-311.2843615,0.00035053,7]
[314996007,1708720242359,-159.29487323,0.00035054,7]
[314996008,1708720242370,-246.67090471,0.00035056,7]
[314996009,1708720242380,-227.24699478,0.00035058,2]
[314996010,1708720242389,-19753.66775138,0.00035068,2]
[314996011,1708720242399,-2997.88857,0.00035068,2]
[314996012,1708720242408,-870.354745,0.00035068,2]
[314996013,1708720242417,-11402.081603,0.00035068,2]
[314996014,1708720242427,-174420.755923,0.00035068,2]
[314996015,1708720242437,-227.24699478,0.0003509,2]
[314996016,1708720242446,-495.33510339,0.00035097,7]
[314996017,1708720242456,-1845.7,0.000351,2]
[314996018,1708720242466,-1845.7,0.000351,2]
[314996019,1708720242476,-1845.7,0.000351,2]
[314996020,1708720242486,-1845.7,0.000351,2]
[314996021,1708720242498,-1845.7,0.000351,2]
[314996022,1708720242508,-1845.7,0.000351,2]
[314996023,1708720242517,-1845.7,0.000351,2]
[314996024,1708720242527,-1845.7,0.000351,2]
[314996025,1708720242538,-1845.7,0.000351,2]
[314996026,1708720242548,-1845.7,0.000351,2]
[314996027,1708720242558,-1845.7,0.000351,2]
[314996028,1708720242568,-1845.7,0.000351,2]
[314996029,1708720242578,-1845.7,0.000351,2]
[314996030,1708720242588,-1845.7,0.000351,2]
[314996031,1708720242599,-1845.7,0.000351,2]
[314996032,1708720242609,-1845.7,0.000351,2]
[314996033,1708720242619,-1845.7,0.000351,2]
[314996034,1708720242629,-1845.7,0.000351,2]
[314996035,1708720242640,-1845.7,0.000351,2]
[314996036,1708720242650,-1845.7,0.000351,2]
[314996037,1708720242660,-4996.98,0.000351,2]
[314996038,1708720242670,-495.33510339,0.00035101,7]
[314996039,1708720242680,-311.2843615,0.00035148,7]
[314996040,1708720242690,-156.57354395,0.00035149,7]
[314996041,1708720242700,-159.39088987,0.00035168,7]
[314996042,1708720242710,-311.2843615,0.00035178,7]
[314996043,1708720242720,-160.49481861,0.00035199,7]
[314996044,1708720242729,-167.87801701,0.00035201,7]
[314996045,1708720242739,-167.02514081,0.00035206,7]
[314996046,1708720242748,-246.67090471,0.0003521,7]
[314996047,1708720242758,-156.30526137,0.00035224,7]
[314996048,1708720242767,-169.19547486,0.00035224,7]
[314996049,1708720242777,-1286.87,0.00035231,2]
[314996050,1708720242789,-153.33262733,0.00035236,7]
[314996051,1708720242798,-163.70167317,0.00035241,7]
[314996052,1708720242807,-159.69428409,0.00035247,7]